Cogmind - Beta 17 @@@ ROGUE MODE // 2026.08.09 @ 12:33:50 Player: Minty Result: Destroyed by H-55 Commando with Gauss Rifle Performance ------------- Evolutions (2) 1000 Regions Visited (3) 600 Robots Destroyed (36) 180 Value Destroyed (906) 906 Prototype IDs (2) 40 Alien Tech Used (0) 0 Bonus (5700) 5700 TOTAL SCORE: 8426 Bonus ------- Prayed to X0-1V1 5000 Major X0-1V1 Interference 700 Cogmind --------- Core Integrity 0/400 Matter 177/300 Energy 167/400 System Corruption 0% Temperature Cool (0) Movement Core (50) Location -8/Materials Parts ------- > --- POWER (1) -------- (None) > --- PROPULSION (4) --- (None) > --- UTILITY (2) ------ Core Analyzer X0-1V1's Piety Tracker > --- WEAPON (4) ------- Katana > --- INVENTORY (5) ---- Improved Ion Engine Improved EM Pulse Cannon Improved EM Pulse Cannon Improved EM Pulse Cannon Plasma Cutter Peak State ------------ > --- POWER ------------ Light Nuclear Core > --- PROPULSION ------- Wheel Wheel > --- UTILITY ---------- Medium Storage Unit X0-1V1's Piety Tracker > --- WEAPON ----------- Autogun Autogun Autogun Autogun > --- INVENTORY -------- Light Treads Light Treads Small Storage Unit Improved Medium Laser Improved Medium Laser Improved Medium Laser Improved Medium Laser Plasma Cutter [Rating: 28] Favorites ----------- Power Light Nuclear Core Engine Reinforced Ion Engine Power Core Light Nuclear Core Propulsion Light Treads Treads Light Treads Leg Aluminum Leg Wheel Wheel Utility Medium Storage Unit Device X0-1V1's Piety Tracker Storage Medium Storage Unit Processor Improved Targeting Computer Weapon Autogun Energy Gun Improved Medium Laser Ballistic Gun Autogun Launcher Rocket Launcher Impact Weapon Hammer Slashing Weapon Katana Build | -11 -10 -9 -8 ------- Run | Yrd Mat Mat Mat Slots Evolved 4 | . . 2 2 Power . | . . . . Propulsion 2 | . . . 2 Utility . | . . . . Weapon 2 | . . 2 . Parts Attached 30 | . 11 10 9 Power 3 | . 1 2 . Engine 2 | . . 2 . Core 1 | . 1 . . Reactor . | . . . . Propulsion 7 | . 2 2 3 Treads 5 | . . 2 3 Leg . | . . . . Wheel 2 | . 2 . . Hover . | . . . . Flight . | . . . . Utility 6 | . 3 1 2 Device 2 | . 1 . 1 Storage 1 | . 1 . . Processor 3 | . 1 1 1 Hackware . | . . . . Protection . | . . . . Artifact . | . . . . Weapon 14 | . 5 5 4 Energy Gun 4 | . 1 . 3 Energy Cannon . | . . . . Ballistic Gun 7 | . 3 4 . Ballistic Cannon . | . . . . Launcher 1 | . . 1 . Special Weapon . | . . . . Impact Weapon 1 | . 1 . . Slashing Weapon 1 | . . . 1 Piercing Weapon . | . . . . Special Melee Weapon . | . . . . Unidentified Prototypes 2 | . 2 . . Parts Lost 20 | . 5 1 14 Power 3 | . 1 1 1 Propulsion 6 | . 2 . 4 Utility . | . . . . Weapon 11 | . 2 . 9 Highest Loss Streak 12 | . 3 1 12 To Critical Strikes . | . . . . Average Backups 7 | . 7 9 8 Power . | . . . 1 Propulsion 2 | . 2 2 . Utility . | . . . . Weapon 3 | . 2 4 6 Tool/Special . | . . . . Unused Backups 6 | . . 1 5 Power 1 | . . . 1 Propulsion . | . . . . Utility 1 | . . 1 . Weapon 3 | . . . 3 Tool/Special 1 | . . . 1 Average Slot Usage (%) 89 | . 92 93 73 Engine 3 | . 1 4 5 Core 7 | . 11 5 . Treads 10 | . . 18 20 Leg 5 | . 12 . . Wheel 7 | . 15 . . Storage 10 | . 14 9 5 Processor 7 | . 7 8 6 Ballistic Gun 32 | . 25 44 30 Peak Build Rating 28 | . 25 28 27 Average Rating 15 | . 10 18 21 On Entrance 14 | 6 6 25 21 Avg Prop Armor Cover (%) 26 | . . . 26 Naked Turns . | . . . . Heaviest Build 38 | 10 22 38 38 Greatest Support 82 | 20 20 40 82 Greatest Overweight (x) 1 | . 1 . . Average Overweight (x) . | . . . . Largest Inventory Capacity 10 | . 10 10 10 Average Capacity 9 | . 9 10 8 Most Carried 10 | . 10 10 10 Average Carried 7 | . 7 9 8 Final Capacity 10 | 8 10 10 5 Final Carried 10 | 6 10 10 5 Class Distribution -------------------- 56% | Mutant 20% | Scavenger-Executioner 20% | Gunner Dominant Class ---------------- Mutant | -10/Materials Gunner | -9/Materials Scavenger-Executioner | -8/Materials Resources | -11 -10 -9 -8 ----------- Run | Yrd Mat Mat Mat Matter Collected 1028 | 200 233 370 225 Remotely . | . . . . Salvage Created 1208 | . 360 491 357 Parts 77 | . 22 32 23 Haulers Intercepted 1 | . 1 . . Recyclers Shooed 1 | . 1 . . Parts Field Recycled . | . . . . Retrieved Matter . | . . . . Parts Self-Destructed . | . . . . Prevented . | . . . . Parts Restored . | . . . . Kills | -11 -10 -9 -8 ------- Run | Yrd Mat Mat Mat Combat Hostiles Destroyed 24 | . 9 9 6 Melee 1 | . 1 . . Guns 20 | . 8 9 3 AOE 3 | . . . 3 Classes Destroyed 10 | . 4 4 2 Worker 6 | . 1 3 2 Hauler 1 | . 1 . . Recycler 3 | . . 2 1 Mechanic 1 | . . . 1 Watcher 1 | . . 1 . Swarmer 7 | . 3 4 . Grunt 12 | . 6 2 4 Brawler 1 | . . 1 . Sentry 2 | . . 2 . Specialist 2 | . . . 2 Best Kill Streak 8 | . 5 6 8 Combat Bots Only 6 | . 5 6 4 Max Kills in Single Turn 3 | . 2 2 3 Gunslinging 1 | . . 1 . Exploded 2 | . . . 2 Melee 1 | . 1 . . Uniques/NPCs Destroyed . | . . . . Combat | -11 -10 -9 -8 -------- Run | Yrd Mat Mat Mat Hostile Shots Fired 233 | . 96 28 109 Missed 62 | . 34 8 20 Hits 171 | . 62 20 89 Projectile 171 | . 62 20 89 Critical Strikes 5 | . . . 5 Damage Taken 3056 | . 745 256 2055 Core 755 | . 165 30 560 Absorbed by Shields . | . . . . Ignored by Resistances 185 | . . . 185 Core Remaining (%) 75 | 100 34 92 . Volleys Fired 80 | . 46 18 16 Largest 6 | . 2 5 6 Hottest 247 | . 46 115 247 Shots Fired 228 | . 80 70 78 Gun 224 | . 80 69 75 Cannon . | . . . . Launcher 4 | . . 1 3 Special . | . . . . Kinetic 216 | . 80 69 67 Thermal 8 | . . . 8 Explosive 4 | . . 1 3 Electromagnetic . | . . . . Robot Hit Streak 11 | . 11 11 8 Robot Miss Streak 7 | . 6 2 7 Penetration Max . | . . . . Secondary Targets 5 | . 3 2 . Max Gunslinging Chain 1 | . 1 1 . Shots Hit Robots 131 | . 48 39 44 Core Hits 66 | . 21 20 25 Critical Kills 1 | . 1 . . Critical Parts Destroyed 1 | . . . 1 Critical Strikes 2 | . 1 . 1 Destroy 2 | . 1 . 1 Melee Attacks 9 | . 7 . 2 Impact 7 | . 7 . . Slashing 2 | . . . 2 Piercing . | . . . . Sneak Attacks . | . . . . Combat Hostiles . | . . . . Follow-up Attacks . | . . . . Damage Inflicted 2733 | . 575 609 1549 Guns 1814 | . 505 605 704 Cannons . | . . . . Explosions 793 | . . . 793 Melee 100 | . 70 . 30 Ramming 26 | . . 4 22 Kinetic 1708 | . 505 605 598 Thermal 267 | . . . 267 Explosive 632 | . . . 632 Electromagnetic . | . . . . Impact 70 | . 70 . . Slashing 30 | . . . 30 Piercing . | . . . . Highest Corruption . | . . . . Average Corruption . | . . . . Corruption Purged . | . . . . Corruption Blocked . | . . . . Overload Shots . | . . . . Overflow Damage 61 | . . . 61 Projectiles . | . . . . Explosions 61 | . . . 61 Melee . | . . . . Knockbacks 1 | . 1 . . Impact 1 | . 1 . . Kinetic . | . . . . Secondary . | . . . . Self-Inflicted Damage 181 | . . . 181 Shots 4 | . . . 4 Rammed 3 | . . 1 2 Targets Rammed 4 | . . 2 2 Kicked . | . . . . Crushed 1 | . . 1 . Highest Temperature 482 | . 21 184 482 Average Temperature 110 | . 7 71 204 Received Heat Transfer 873 | . 345 105 423 Effects 3 | . . . 3 Shutdowns 1 | . . . 1 Energy Bleed 1 | . . . 1 Short Circuit 1 | . . . 1 Siege Activations . | . . . . Martial Activations . | . . . . Shielding Activations . | . . . . Robots Disrupted . | . . . . Combat Hostiles . | . . . . Robots Corrupted . | . . . . Combat Hostiles . | . . . . Parts Fried . | . . . . Impact Corruptions . | . . . . Robots Melted . | . . . . Combat Hostiles . | . . . . Parts Melted . | . . . . Heat Transferred 372 | . . . 372 Parts Sabotaged . | . . . . Parts Stolen . | . . . . Parts Stripped . | . . . . Power Chain Reactions . | . . . . Alert | -11 -10 -9 -8 ------- Run | Yrd Mat Mat Mat Maximum Alert Level 1 | . . . 1 Low Security (%) 98 | . 100 100 92 Level 1 1 | . . . 7 Level 2 . | . . . . Level 3 . | . . . . Level 4 . | . . . . Level 5 . | . . . . High Security . | . . . . Max Security . | . . . . Peak Influence 244 | . 125 166 244 Initial 59 | . . . 59 Average 50 | . 35 66 62 Influence Increases 919 | . 251 273 395 Destroy 0b10 Robot/C 480 | . 180 180 120 Destroy 0b10 Robot/NC 60 | . 10 30 20 Destroy Leader 84 | . 42 32 10 Successful Hack 25 | . 4 6 15 Disable Machine 45 | . . 15 30 Destroy Structure 45 | . . 10 35 Lose Combat Pursuer 180 | . 15 . 165 Influence Decreases 680 | . 251 132 297 Entered New Map 82 | . . . 82 Time Decay 413 | . 201 122 90 Lost Part 185 | . 50 10 125 Squads Dispatched 8 | . 1 1 6 Investigation 3 | . . 1 2 Extermination . | . . . . Reinforcement 5 | . 1 . 4 Assault . | . . . . Garrison . | . . . . Intercept . | . . . . Searches Triggered . | . . . . Construction Impeded . | . . . . Haulers Reinforced . | . . . . Active Scanning Responses . | . . . . Cargo Convoy Interrupts . | . . . . Stealth | -11 -10 -9 -8 --------- Run | Yrd Mat Mat Mat Distress Signals 3 | . 2 1 . Communications Jammed . | . . . . Distress Signals . | . . . . Times Spotted 54 | . 15 13 26 Peak Tracking Total 12 | . 6 3 12 Tactical Retreats 5 | . 1 . 4 Traps | -11 -10 -9 -8 ------- Run | Yrd Mat Mat Mat Traps Triggered 1 | . . 1 . Indirectly . | . . . . Trap Hack Attempts . | . . . . Triggered . | . . . . Disarmed . | . . . . Reprogrammed . | . . . . Reused . | . . . . Traps Extracted . | . . . . Installed . | . . . . Triggered . | . . . . Machines | -11 -10 -9 -8 ---------- Run | Yrd Mat Mat Mat Machines Disabled 3 | . . 1 2 Max in Single Turn 1 | . . 1 1 Machines Repaired . | . . . . Machines Dismantled . | . . . . Machines Sabotaged . | . . . . Overloaded Fab Kills . | . . . . Hacking | -11 -10 -9 -8 --------- Run | Yrd Mat Mat Mat Machines Accessed 8 | . 3 3 2 Terminals 7 | . 3 2 2 Fabricators . | . . . . Repair Stations . | . . . . Recycling Units . | . . . . Scanalyzers 1 | . . 1 . Garrison Access . | . . . . Total Hacks 28 | . 7 12 9 Successful 14 | . 4 6 4 Failed 14 | . 3 6 5 Catastrophic . | . . . . Database Lockouts . | . . . . Manual 16 | . 5 10 1 Terminals 26 | . 7 10 9 Fabricators . | . . . . Repair Stations . | . . . . Recycling Units . | . . . . Scanalyzers 2 | . . 2 . Garrison Access . | . . . . Terminal Hacks 11 | . 4 4 3 Robot Analysis 4 | . . 4 . Level Access Points 1 | . . . 1 Alert Level 2 | . . . 2 Locate Traps 1 | . 1 . . Maintenance Status 1 | . 1 . . Patrol Status 1 | . 1 . . Zone Layout 1 | . 1 . . Fabricator Hacks . | . . . . Repair Station Hacks . | . . . . Recycling Unit Hacks . | . . . . Scanalyzer 2 | . . 2 . Retrieve Study 2 | . . 2 . Garrison Access Hacks . | . . . . Unauthorized Hacks 1 | . . . 1 Terminals 1 | . . . 1 Disrupt 1 | . . . 1 Fabricators . | . . . . Repair Stations . | . . . . Recycling Units . | . . . . Scanalyzers . | . . . . Garrison Access . | . . . . Data Cores Recovered . | . . . . Used . | . . . . Hacking Detections 8 | . 3 3 2 Full Trace Events 3 | . . 2 1 Feedback Events . | . . . . Feedback Blocked . | . . . . Robot Schematics Acquired . | . . . . Robots Built . | . . . . Authchips . | . . . . Time . | . . . . Total Robot Build Rating . | . . . . Part Schematics Acquired . | . . . . Parts Built . | . . . . Authchips . | . . . . Time . | . . . . Total Part Build Rating . | . . . . Part Studies Acquired 2 | . . 2 . Parts Repaired . | . . . . Time . | . . . . Parts Recycled . | . . . . Recycled Matter . | . . . . Retrieved Matter . | . . . . Retrieved Components . | . . . . Parts Scanalyzed . | . . . . Part Schematics Acquired . | . . . . Parts Damaged . | . . . . Bothacking | -11 -10 -9 -8 ------------ Run | Yrd Mat Mat Mat Used RIF Installer . | . . . . Robots Hacked . | . . . . Non-combat . | . . . . Combat . | . . . . Robot Hacks Applied . | . . . . Relay Couplers Released . | . . . . Fabnet Peak Effective % . | . . . . Robots Rewired . | . . . . Allies Hacked . | . . . . Hacks Repelled . | . . . . Allies | -11 -10 -9 -8 -------- Run | Yrd Mat Mat Mat Total Allies . | . . . . Largest Group . | . . . . Highest-Rated Group . | . . . . Highest-Rated Ally . | . . . . Total Orders . | . . . . Ally Attacks . | . . . . Total Damage . | . . . . Kills . | . . . . Allies Corrupted . | . . . . Allies Melted . | . . . . X0-1V1 Amusement Gains 95 | . 5 25 65 Good Acts 7 | . . 4 3 Bad Acts 6 | . . 2 4 Intel | -11 -10 -9 -8 ------- Run | Yrd Mat Mat Mat Active Infowar (turns) . | . . . . Robot Analysis Total 4 | . . 4 . Derelict Logs Recovered . | . . . . Drone Launches . | . . . . Drone Recoveries . | . . . . Exploration | -11 -10 -9 -8 ------------- Run | Yrd Mat Mat Mat Turns Passed 1264 | . 615 396 253 Spaces Moved 762 | 1 380 202 179 Core 104 | . . . 104 Treads 277 | . . 202 75 Legs 129 | 1 128 . . Wheels 252 | . 252 . . Hover . | . . . . Flight . | . . . . Fastest Speed 50 | 120 80 160 50 Average Speed 114 | 120 100 160 95 Slowest Speed 160 | 120 120 160 160 Overloaded Moves . | . . . . Propulsion Burnouts . | . . . . Robots Hopped . | . . . . Potential Cave-ins . | . . . . Cave-ins Triggered . | . . . . Exploration Rate (%) 21 | 2 45 22 18 Regions Visited 3 Branch Regions . Pre-discovered Areas . | . . . . Known Exits Taken 2 | . 1 1 . Unknown Exits Taken 1 | 1 . . . Scrap Searched . | . . . . Spaces Dug . | . . . . Terrain Destroyed 46 | . . 9 37 Melee . | . . . . Projectile . | . . . . AOE 46 | . . 9 37 Terrain Rammed . | . . . . Walls Destroyed . | . . . . Machines Disabled . | . . . . Actions | -11 -10 -9 -8 --------- Run | Yrd Mat Mat Mat Total 998 | . 530 241 227 Wait 83 | . 76 . 7 Move 760 | . 379 202 179 Hop . | . . . . Pick Up 14 | . 6 5 3 Fast Attach 12 | . 5 3 4 Attach 12 | . 3 2 7 Detach 3 | . 2 . 1 Swap 11 | . 4 6 1 Drop 11 | . 2 4 5 Fire 80 | . 46 18 16 Melee 9 | . 7 . 2 Ram . | . . . . Kick . | . . . . Crush 3 | . . 1 2 Escape Stasis . | . . . . Rewire . | . . . . Trap . | . . . . Miscellaneous . | . . . . Route ------- -11/Scrapyard -10/Materials (discovered 2 exits: *Mat / [*Sub]) -9/Materials -8/Materials (discovered 3 exits: Fac x3) History --------- Turn | Location | Event 1 | -11/Scrapyard | Discovered new exit (range 0) 1 | -11/Scrapyard | Entered Materials 184 | -10/Materials | Discovered new exit (range 13) 235 | -10/Materials | Identified exit to Materials 266 | -10/Materials | Core integrity fell below 50% 301 | -10/Materials | Lost 3 parts (2n1w) 324 | -10/Materials | Build established: Mutant 544 | -10/Materials | Discovered new exit (range 6) 574 | -10/Materials | Prayed at D.C.S.S. Altar Unit 616 | -10/Materials | Entered another Materials area 616 | -9/Materials | Evolved 2 slots: Weapon x2 656 | -9/Materials | Identified exit to Materials 656 | -9/Materials | X0-1V1 revealed exit location to -8/Materials 698 | -9/Materials | X0-1V1 foreshadows a heat wave 789 | -9/Materials | Weapon slot count temporarily expanded by X0-1V1 (+2) 944 | -9/Materials | Ambient heat levels rising (+10) 1012 | -9/Materials | Entered another Materials area 1012 | -8/Materials | Evolved 2 slots: Propulsion x2 1129 | -8/Materials | X0-1V1 upgraded hostiles (x3) 1191 | -8/Materials | Core integrity fell below 50% 1205 | -8/Materials | Core integrity fell below 20% 1229 | -8/Materials | Lost 12 parts (1p2n9w) 1230 | -8/Materials | Identified exit to Factory 1232 | -8/Materials | Energy capacity permanently improved by X0-1V1 (+300; -150 max core) 1265 | -8/Materials | Destroyed by H-55 Commando with Gauss Rifle Last Messages --------------- Map updated. >>Alert(Check) Current Alert Level: Low Security >>Trojan(Disrupt) Trojan loaded successfully. Testing... Disruption routine running. 01232_ X0-1V1: "Any self-respecting god will have their pound of flesh." (permanent -150 core integrity, +300 energy capacity) 01238_ Dropped Imp. Medium Laser. 01238_ Acquired Katana. X0-1V1's Piety Tracker suddenly appears amidst shimmering waves of color. 01241_ Acquired X0-1V1's Piety Tracker. 01250_ Penetrated by Slug. 01250_ Adv. Treads destroyed. 01257_ Weapon slot count returns to normal. 01262_ Slug penetrates Electrolysis Chamber. 01262_ Electrolysis Chamber disabled. 01265_ Penetrated by Slug. 01265_ X0-1V1 bursts into laughter! Map ----- +----------------------------------------------------+ | #*! # #???# """ + % ## | | #*! # #???# # | | #*! ?# #???########## | | # ?# ####### ## | | ###??##### "" ## | | ?????????# T ## % % | | ?????????# % | | ?????????# ####### ####### | | ?????????# #??#######/##?????? | | ?????????# #### # ??????? | | ?????????+ # ""??????? | | ?????????# T # ""??????? | | ?????????##/######## # ""??????? | | ?????????# ???????## ## """?????? | | ?????????# ????????# ## ""??????? | | ?????????# ????????# ## ????????? | | ?????????# ????????# ## ????????? | | ???????###+########## ##/######??? | | ???????# H | | ???????# g #?????? | | ???????###g####+##########+##?????? | | ???????# [ # #?????????????? | | ???????# # #?????????????? | | ???????# h"""# #?????????????? | | ???????# g """# #?????????????? | | ???????# @ ""# #?????????????? | | ???????# # [ #?????????????? | | ???????######## ! #?????????????? | | ??????????????#######?????????????? | | ??????????????????????????????????? | | | | | | | | | | | | | | | | | | | | | | | | | | | | | | | | | | | | | | | | | +----------------------------------------------------+ Best States ------------- Heat Dissipation 31 Energy Generation 14 Energy Capacity 400 Matter Stores 300 Matter Capacity 300 Sight Range 16 Terrain Scan Density 10 Resistance: TH 25 Evasion (%) 55 Targeting Accuracy 6 Core Analysis 6 Recoil Reduction 4 Item Schematics ----------------- None Robot Schematics ------------------ None Fabricated ------------ Nothing Repaired ---------- Nothing Studied --------- Autogun | -9/Materials | Hacked Wheel | -9/Materials | Hacked Alien Tech Used ----------------- None Achievements -------------- None Challenges ------------ None Game ------ Seed MiningScrapoidDeflector Manual? 0 Play Time 00:12:41 Cumulative 1357.9 hours Start 2026.08.08 @ 19:05:20 End 2026.08.09 @ 12:33:50 Sessions 3 Manual Loads 0 Difficulty Rogue Special Mode None Game No. 1666 Rogue 1382 Adventurer 124 Explorer 160 Win Type - Total 70 Types 55/0/9/4/1/0/0/1/0/0 Lore% 93 Gallery% 84 Achievement% 74 Wizard Run 0 Options --------- Layout 0 ASCII 0 Keyboard 1 Movement Numpad Keybinds 0 Fullscreen 2 Font 18/X11 Map View 76x50 Zoom Use 0% Tactical HUD 1 Map Filters NONE Filters NONE Steam 1 RUN: dc378d71-e112-4292-80f7-2b7e0b637236